[Event "45th FIDE Olympiad 2024"]
[Site "Budapest"]
[Date "2024.09.11"]
[Round "1.142"]
[White "Lynch, Kemp"]
[Black "Petrov, Nikita"]
[Result "0-1"]
[ECO "B80"]
[WhiteElo "1944"]
[BlackElo "2574"]
[Annotator "TA"]
[PlyCount "92"]
[EventDate "2024.09.05"]
[EventType "team-tourn"]
[EventCountry "HUN"]
[SourceTitle "playchess.com"]
[Source "ChessBase"]
[SourceQuality "1"]
[WhiteTeam "Barbados"]
[BlackTeam "Montenegro"]
[WhiteTeamCountry "BAR"]
[BlackTeamCountry "MNE"]
[TimeControl "40/5400+30:1800+30"]

{[%evp 19,92,10,12,0,20,15,15,11,33,-5,0,0,0,-24,-31,-39,-16,-49,-25,-93,-80,-130,-115,-109,-124,-120,-115,-105,-85,-122,-108,-118,-125,-291,-276,-279,-283,-285,-277,-278,-267,-348,-335,-425,-225,-238,-243,-243,-227,-258,-259,-293,-295,-306,-285,-289,-302,-287,-284,-308,-305,-292,-293,-276,-262,-285,-229,-271,-271,-271,-272,-291,-295,-399,-399]} 1. e4 c5 2. Nf3 Nc6 3. d4 cxd4 4. Nxd4 e6 5. Nc3 Qc7 6. g3 a6 7. Bg2 d6 8. O-O Nf6 9. a4 Be7 10. Nb3 b6 11. Be3 Bb7 12. Qe2 O-O 13. f4 {The position is equal.} Nb4 14. Kh1 Rac8 15. Bg1 e5 16. fxe5 dxe5 17. Rac1 h6 18. Be3 Qc6 19. Nd2 (19. Qf3 $11 {remains equal.}) 19... Qe6 $17 20. Bf3 ({Better is} 20. Rfd1) 20... Na2 21. Nxa2 Qxa2 22. c4 Qxa4 23. Bxb6 Bb4 24. Be3 Rfd8 25. Rfd1 Rd7 {Black is much more active.} 26. Bb6 $2 {[#] Loses the game.} (26. c5 $17) 26... Rxd2 27. Rxd2 Bxd2 28. Qxd2 Bxe4 29. Bxe4 Nxe4 30. Qd5 Nf6 31. Qa5 Rxc4 (31... Qb3 $142 32. Bf2 Qxb2 (32... Rxc4 $2 33. Rxc4 Qxc4 34. Kg2 $19)) 32. Qxa4 $19 Rxa4 {[%mdl 4096] Endgame. KRB-KRN} 33. Bc5 Ne4 34. Ba3 Rd4 35. Rc8+ Kh7 36. Rc7 Ng5 37. h4 Rd1+ 38. Kg2 Rd2+ 39. Kf1 Ne4 40. Rxf7 Nxg3+ 41. Ke1 Rd4 42. Ra7 Ra4 43. Kf2 Nf5 44. h5 e4 45. Rf7 e3+ 46. Ke2 Rf4 {Weighted Error Value: White=0.33/Black=0.17 (very precise) .  Loses game:     	White=1     	---        Mistake:       	White=2     	Black=1      Inaccurate:     	White=5     	---        OK:         	White=6     	Black=14     Best:        	White=2     	Black=3} 0-1

[Event "45th FIDE Olympiad 2024"]
[Site "Budapest"]
[Date "2024.09.11"]
[Round "1.143"]
[White "Djukic, Nikola"]
[Black "Corbin, Philip"]
[Result "1-0"]
[ECO "C40"]
[WhiteElo "2515"]
[BlackElo "1916"]
[Annotator "TA"]
[PlyCount "81"]
[EventDate "2024.09.05"]
[EventType "team-tourn"]
[EventCountry "HUN"]
[SourceTitle "playchess.com"]
[Source "ChessBase"]
[SourceQuality "1"]
[WhiteTeam "Montenegro"]
[BlackTeam "Barbados"]
[WhiteTeamCountry "MNE"]
[BlackTeamCountry "BAR"]
[TimeControl "40/5400+30:1800+30"]

{[%evp 9,81,80,100,93,92,87,104,96,95,85,110,114,293,291,300,272,286,251,296,313,313,294,285,297,276,293,444,438,875,618,607,560,1007,1001,966,954,955,927,907,740,750,750,721,716,728,720,720,720,800,704,685,650,756,752,791,758,805,817,801,804,830,820,1160,1151,6002,5830,9488,6624,29971,29958,29984,29985,29985,29986]} 1. e4 {[%cal Be2e4,Be4d5][%mdl 32]} e5 2. Nf3 d5 3. exd5 Bd6 4. d4 e4 5. Ne5 Nf6 6. Bb5+ c6 7. dxc6 bxc6 8. Ba4 {White is better.} (8. Bxc6+ Nxc6 9. Nxc6 Qb6 $14) 8... O-O 9. Nc3 (9. Bxc6 $2 Nxc6 10. Nxc6 Qb6 $19) 9... Ba6 10. Bg5 {White is more active.} (10. Bxc6 Nxc6 11. Nxc6 Qb6 $17) (10. Nxc6 $6 Qc7 11. d5 Nxc6 12. Bxc6 Be5 $11) 10... Qa5 $2 (10... Bb4 $16) 11. Bxf6 $1 $18 (11. Bxc6 $2 Nxc6 12. Bxf6 Nxe5 13. Bxe5 Bxe5 $19) 11... gxf6 12. Qg4+ (12. Nxc6 Nxc6 13. Qg4+ (13. Bxc6 Rac8 $17) 13... Kh8 $11) 12... Kh8 {[#]} 13. Qf5 fxe5 (13... Bxe5 14. dxe5) 14. Qf6+ (14. Qxe4 $2 f5 15. Qf3 exd4 $19) 14... Kg8 {Strongly threatening ...exd4.} 15. Qxd6 {0-0-0 would now be deadly.} exd4 16. Qxd4 {[%cal Oe1c1]} (16. Bxc6 $2 Nxc6 17. Qxc6 dxc3 18. Qxc3 Qxc3+ 19. bxc3 Rac8 $19) 16... Rd8 17. Qe3 (17. Qxe4 Rd6 $16) 17... Nd7 (17... Qe5 $142 18. Rd1 (18. Nxe4 Rd4 $18) (18. Qxe4 Qxe4+ 19. Nxe4 Re8 $11) 18... Rxd1+ 19. Kxd1 Bb5) 18. O-O-O (18. Bxc6 Rac8 $18) (18. Qxe4 $2 Re8 19. Bxc6 Rxe4+ (19... Nf6 $2 20. Qxe8+ Rxe8+ 21. Bxe8 $19) 20. Bxe4 Rb8 $19) 18... Nc5 (18... Nf6 $142 19. Bxc6 Rac8 20. Rxd8+ (20. Bxe4 Re8 $18) 20... Rxd8 21. Qxa7 (21. Nxe4 Nxe4 22. Bxe4 Kg7 $18) (21. Rd1 Rxd1+ 22. Nxd1 Kg7 $18) 21... Qg5+ 22. Qe3 Qxg2) 19. Rxd8+ Rxd8 20. b4 Qxb4 21. Qg5+ (21. Bxc6 $2 {loses.} Nd3+ 22. Kd2 Nxf2+ (22... Ne5+ $2 23. Kc1 $19) 23. Ke1 Nd3+ (23... Nxh1 $2 24. Qg5+ Kf8 25. Qxd8+ Kg7 26. Qg5+ Kf8 27. Qf6 $18) 24. Kd1 Nf4+ $19 (24... Qxc3 25. Qg5+ Kh8 26. Qxd8+ Kg7 27. cxd3 $16) (24... Qxc3 $2 25. Qg5+ Kh8 26. Qxd8+ Kg7 27. cxd3 $16)) 21... Kf8 22. Qxd8+ Kg7 23. Qg5+ ({Inferior is} 23. Bxc6 Qxc3 24. Qg5+ Kf8 25. Qd8+ Kg7 $11) 23... Kf8 {[#]} 24. Rd1 $1 {[%cal Rd1d8]} Nd3+ {[#]} 25. Rxd3 $1 exd3 26. Qf6 {And now Bb3 would win.} Bc4 27. Qd8+ Kg7 28. Qd4+ Kg8 29. cxd3 Qa3+ 30. Kd2 Qb2+ 31. Bc2 Bxa2 32. Qxa7 Be6 33. Qa8+ Kg7 34. Qxc6 Qb4 35. Qe4 Qb6 36. d4 f5 37. Qe5+ Kf7 38. Bxf5 Qb2+ 39. Bc2 {White mates.} Bb3 40. Qc7+ Kf6 41. Qb6+ {Black did not feel at home in the position after the opening.   Weighted Error Value: White=0.42/Black=0.47.  Loses game:     	---       	Black=1      Mistake:       	---       	Black=2      OK:         	White=6     	Black=3      Best:        	White=3     	---        Strong:       	White=1     	---} 1-0

[Event "45th FIDE Olympiad 2024"]
[Site "Budapest"]
[Date "2024.09.11"]
[Round "1.144"]
[White "Edwards, Emar"]
[Black "Draskovic, Luka"]
[Result "0-1"]
[ECO "D00"]
[WhiteElo "1898"]
[BlackElo "2497"]
[Annotator "TA"]
[PlyCount "102"]
[EventDate "2024.09.05"]
[EventType "team-tourn"]
[EventCountry "HUN"]
[SourceTitle "playchess.com"]
[Source "ChessBase"]
[SourceQuality "1"]
[WhiteTeam "Barbados"]
[BlackTeam "Montenegro"]
[WhiteTeamCountry "BAR"]
[BlackTeamCountry "MNE"]
[TimeControl "40/5400+30:1800+30"]

{[%evp 9,102,-4,-5,-2,2,2,0,0,0,0,2,0,8,8,11,7,29,13,25,12,21,14,20,0,-14,-19,-12,-5,0,-27,-19,-41,-39,-88,-70,-83,-74,-81,-28,-21,-29,-29,-25,-40,-45,-34,-33,-38,-42,-22,-37,-119,-46,-124,-127,-144,-147,-211,-213,-207,-218,-288,-282,-493,-467,-664,-661,-829,-816,-2035,-693,-2302,-2038,-5106,-29964,-29963,-29968,-29968,-29969,-29966,-29969,-29962,-29965,-29963,-6223,-5816,-2552,-1814,-1389,-29977,-29978,-29980,-29981,-29983,-29984]} 1. d4 Nf6 2. Nc3 d5 3. Bf4 e6 4. Nb5 Na6 5. e3 c6 6. Nc3 Qb6 7. a3 c5 (7... Qxb2 $2 {too greedy.} 8. Na4 Bb4+ 9. axb4 Qxb4+ 10. c3 $18) 8. Nf3 {The position is equal.} Bd7 9. Rb1 Rc8 10. Bd3 Be7 11. O-O O-O 12. Ne5 Nb8 13. dxc5 Qxc5 14. Qf3 Nc6 15. Qh3 {[#] And now Nxd7 would win.} g6 16. Nxc6 Bxc6 17. Rfd1 (17. Be5 {feels hotter.} a6 18. f4 Nd7 19. b4) 17... a6 18. b4 Qb6 ({Weaker is} 18... Qxc3 19. Rb3 $16) 19. Bg5 Qd8 20. Qh4 Re8 {[%cal Bf8e8,Be8e7,Be7d7][%mdl 32]} 21. Ne2 (21. b5 $15 axb5 22. Nxb5) 21... Ba4 $17 22. Rdc1 Nd7 23. Bxe7 Qxe7 (23... Rxe7 $17 24. Ng3 Ne5) 24. Qxe7 $11 Rxe7 25. c4 dxc4 26. Rxc4 Rxc4 27. Bxc4 Ne5 28. Bb3 Bxb3 29. Rxb3 $15 {[%mdl 4096] Endgame. KRN-KRN} Rd7 {[%cal Rd7d1]} 30. h3 {Black continues to play with concentration.} ({White should play} 30. Nd4 $15) 30... Rd1+ $17 31. Kh2 Rd2 {Black is more active.} 32. Nf4 Rxf2 33. b5 (33. Nd3 $17 Nxd3 34. Rxd3) 33... Rd2 34. bxa6 bxa6 35. Rb6 Nc4 {[%csl LRa3,LRb6,LRe3]} 36. Rxa6 (36. Rb3) 36... e5 $19 {[%cal Oc4e3] Threatens to win with ...Nxe3!} ({Not} 36... Nxe3 37. Ra5 $19) 37. Rc6 (37. Ra8+ $142 Kg7 38. Ra7 exf4 39. exf4) 37... Nxe3 38. Nxg6 fxg6 {KRN-KR} 39. Re6 Rxg2+ 40. Kh1 Re2 41. a4 Nc4 42. Rc6 Nd2 43. Rc2 e4 44. a5 e3 45. a6 Re1+ 46. Kg2 Ra1 47. Rc8+ Kg7 {[%cal Oe3e2]} 48. Re8 Nc4 {[%cal Og7f7] ( -> ...Kf7!)} 49. Re4 Ra2+ {Black mates.} 50. Kg1 {[#]} Rxa6 $1 51. Rxc4 (51. Re8 Kf6) 51... Ra1+ {Weighted Error Value: White=0.45/Black=0.04 (flawless) .  Mistake:       	White=5     	Black=1      Inaccurate:     	White=4     	---        OK:         	White=14    	Black=14     Best:        	---       	Black=5} 0-1

[Event "45th FIDE Olympiad 2024"]
[Site "Budapest"]
[Date "2024.09.11"]
[Round "1.145"]
[White "Alrehaili, Ahmed Abdullah S"]
[Black "Cheng, Bobby"]
[Result "1-0"]
[ECO "B92"]
[WhiteElo "2117"]
[BlackElo "2588"]
[Annotator "TA"]
[PlyCount "79"]
[EventDate "2024.09.05"]
[EventType "team-tourn"]
[EventCountry "HUN"]
[SourceTitle "playchess.com"]
[Source "ChessBase"]
[SourceQuality "1"]
[WhiteTeam "Saudi Arabia"]
[BlackTeam "Australia"]
[WhiteTeamCountry "SAU"]
[BlackTeamCountry "AUS"]
[TimeControl "40/5400+30:1800+30"]

{[%evp 16,79,20,-6,9,-18,16,0,32,0,19,15,28,0,22,0,18,-27,17,10,220,247,244,272,315,308,301,295,401,402,407,116,395,404,397,364,372,361,353,359,568,566,574,574,569,554,961,956,900,859,816,778,1132,852,8250,8250,29973,29973,29973,29971,29962,0,29971,29970,29957,10095]} 1. e4 c5 2. Nf3 d6 3. d4 cxd4 4. Nxd4 Nf6 5. Nc3 a6 6. Be2 e5 7. Nb3 Be7 8. O-O O-O 9. Kh1 h6 10. f4 Nc6 11. Qe1 b5 {The position is equal.} 12. a4 bxa4 13. Rxa4 a5 14. Qg3 Kh8 15. Rd1 Bd7 16. fxe5 dxe5 17. Bb5 {Threatens to win with Bxc6.} Bb4 $2 {White stays focused until the end.} (17... Qe8 $11 {and Black stays safe.}) 18. Bxc6 $40 {[%mdl 128] White has strong attack.} Bxc6 19. Rxd8 Raxd8 20. Ra1 Nxe4 {[#]} 21. Qh4 (21. Qxe5 $2 Bxc3 22. Qh5 Nf6 $19) 21... Bxc3 22. Bxh6 gxh6 23. Qxh6+ (23. bxc3 Rd6 $18) 23... Kg8 {White must now prevent ...Rd6.} 24. Qxc6 ({Less strong is} 24. bxc3 Rd6 25. Qe3 Rfd8 $14) 24... Bxb2 25. Qxe4 Bxa1 26. Qg4+ Kh8 27. Nxa1 f5 (27... a4 {was called for.} 28. h3 (28. Qxa4 $2 Rd1#) 28... Ra8 29. Qh5+ Kg8 30. Qxe5 a3 31. Qg3+ Kh7) 28. Qh5+ $18 Kg7 29. Nb3 a4 30. Nc5 Rf6 {[#] Against Ne6+} 31. Ne6+ $1 {[%mdl 512]} Rxe6 {[%mdl 4096] Endgame. KQ-KRR} 32. Qg5+ (32. Qxf5 $2 {leads to mate.} Rd1+) 32... Kf7 33. Qxd8 {KQ-KR} Ra6 34. Qc8 Rd6 35. Qxf5+ Kg8 36. h4 (36. Qxe5 $2 {is a self mate.} Rd1+) 36... a3 37. Qc8+ Kf7 38. Qf5+ Kg8 $1 39. Qg4+ Kh7 40. Qe4+ {Weighted Error Value: White=0.11 (very precise) /Black=0.68.  Loses game:     	---       	Black=2      Mistake:       	---       	Black=1      Inaccurate:     	White=4     	Black=5      OK:         	White=8     	Black=3      Best:        	White=1     	Black=3      Brilliant:      	White=1     	---} 1-0

[Event "45th FIDE Olympiad 2024"]
[Site "Budapest"]
[Date "2024.09.11"]
[Round "1.146"]
[White "Sardana, Rishi"]
[Black "Al Thebaiti, Ahmed M"]
[Result "1-0"]
[ECO "C78"]
[WhiteElo "2477"]
[BlackElo "1993"]
[Annotator "TA"]
[PlyCount "77"]
[EventDate "2024.09.05"]
[EventType "team-tourn"]
[EventCountry "HUN"]
[SourceTitle "playchess.com"]
[Source "ChessBase"]
[SourceQuality "1"]
[WhiteTeam "Australia"]
[BlackTeam "Saudi Arabia"]
[WhiteTeamCountry "AUS"]
[BlackTeamCountry "SAU"]
[TimeControl "40/5400+30:1800+30"]

{[%evp 24,77,39,25,43,41,37,25,55,34,28,22,59,47,94,44,41,33,43,31,49,52,52,-54,0,-6,26,37,32,-100,137,101,233,216,182,74,243,237,229,246,218,222,526,521,520,522,1130,1176,1177,1152,1262,1045,2013,1952,1940,1887]} 1. e4 e5 2. Nf3 Nc6 3. Bb5 a6 4. Ba4 Nf6 5. O-O b5 6. Bb3 Bc5 7. c3 d6 8. d4 Bb6 9. Be3 O-O 10. Nbd2 h6 11. h3 Re8 12. Re1 Bb7 13. d5 Ne7 14. Bxb6 cxb6 15. Bc2 Ng6 {White has an edge.} 16. Bd3 Nd7 17. b4 Qf6 18. Bf1 Rec8 (18... Reb8 $14) 19. Rc1 (19. c4 $16) 19... Rc7 20. Qb3 Rac8 21. c4 Nf4 22. Qe3 Qd8 {[%cal Of7f5]} 23. Rc3 (23. Qa3 $14) 23... bxc4 (23... f5 $1 $15 24. g3 (24. exf5 $2 Nxd5 25. cxd5 Rxc3 $19) 24... Ng6) 24. Rxc4 $11 b5 25. Rxc7 Qxc7 26. Nb3 {[#]} (26. Nh4 $14 {keeps the upper hand.}) 26... Qc3 $2 (26... f5 $1 $17 {...fxe4 is the strong threat.} 27. Rc1 (27. exf5 $2 Nxd5 28. Qd2 Qc3 $19) 27... Qb6 28. Rxc8+ Bxc8) 27. Qa7 Nxh3+ 28. gxh3 $18 Qxf3 29. Bg2 (29. Qxb7 $18 {and White stays clearly on top.} Rc2 30. Qa7 (30. Qxd7 $2 Qxf2+ 31. Kh1 Qh2#)) 29... Qf6 $2 (29... Qc3 $16 30. Rc1 Qxb4 (30... Qb2 $2 31. Rxc8+ Bxc8 32. Qc7 $18)) 30. Qxb7 Rc2 31. Rf1 (31. Qxd7 $2 {gets mated.} Qxf2+ 32. Kh2 Qxg2#) 31... Nf8 32. Qb8 {Hoping for Na5.} g5 $2 (32... h5 33. Na5 Qg5) 33. Na5 {[%cal Bb3a5,Ba5b7,Bb7d6,Bd6e8,Be8f6,Bf6h5][%mdl 32] White is clearly winning.} Kg7 {[%cal Bg8g7,Bg7h7,Bh7h8][%mdl 32]} 34. Nb7 Ng6 35. Nxd6 {[#] White wants to mate with Ne8+.} Kh7 36. Ne8 Qf4 37. Qd6 Rc8 38. Nf6+ ({Not} 38. Qxa6 Rxe8 39. Qxb5 Ra8 $16) 38... Kh8 39. Nh5 {Weighted Error Value: White=0.35/Black=0.68.  Loses game:     	---       	Black=1      Mistake:       	White=4     	Black=5      Inaccurate:     	---       	Black=4      OK:         	White=5     	Black=5      Best:        	White=2     	Black=2} 1-0

[Event "45th FIDE Olympiad 2024"]
[Site "Budapest"]
[Date "2024.09.11"]
[Round "1.147"]
[White "Alshnaiber, Yazeed"]
[Black "Zhao, Zong-Yuan"]
[Result "0-1"]
[ECO "B92"]
[WhiteElo "1889"]
[BlackElo "2478"]
[Annotator "TA"]
[PlyCount "96"]
[EventDate "2024.09.05"]
[EventType "team-tourn"]
[EventCountry "HUN"]
[SourceTitle "playchess.com"]
[Source "ChessBase"]
[SourceQuality "1"]
[WhiteTeam "Saudi Arabia"]
[BlackTeam "Australia"]
[WhiteTeamCountry "SAU"]
[BlackTeamCountry "AUS"]
[TimeControl "40/5400+30:1800+30"]

{[%evp 16,96,22,-8,8,0,-7,-29,-23,-29,-7,-16,-26,-23,0,-7,-11,-20,-13,-33,-20,-43,-47,-37,-59,-64,-60,-64,34,-33,0,-105,-20,-19,0,0,33,34,25,35,38,0,0,-2,0,-106,-93,-142,-15,-23,-14,-15,-13,-16,-28,-20,0,0,0,-235,-79,-79,-73,-122,-123,-463,-198,-185,-46,-263,-262,-331,-248,-368,-364,-350,-259,-726,-622,-774,-768,-737,-654]} 1. e4 c5 2. Nf3 d6 3. d4 cxd4 4. Nxd4 Nf6 5. Nc3 a6 6. Be2 e5 7. Nb3 Be7 8. O-O O-O 9. Kh1 h6 10. f4 Nbd7 11. Qe1 b5 {Black has an edge.} 12. a4 b4 13. Nd5 Nxd5 14. exd5 a5 15. c4 bxc3 16. bxc3 Bf6 17. Ra2 Re8 18. Qf2 Ba6 (18... exf4 {seems wilder.} 19. Bxf4 Bxc3 20. Bxh6 Qf6) 19. Bxa6 Rxa6 20. fxe5 Nxe5 21. Nd4 Qa8 (21... Nd3 $15 22. Qf5 Nxc1 23. Rxc1 Qb6) 22. Nb5 (22. Qg3 $1 $14 Ng6 (22... Qxd5 23. Re2 $16) 23. Nc6) 22... Re7 (22... Qxd5 23. Nc7 Qc6 24. Nxe8 (24. Nxa6 Qxa6 25. Bd2 Qd3 $14) 24... Qxe8 25. Bxh6 $16) 23. Ba3 (23. Qf5 $11 {remains equal.}) 23... Nc4 ({Black should try} 23... Qxd5 $17 {...Ng4 is the strong threat.} 24. Rd2 Ng4 (24... Nd3 $2 25. Qg3 $18) 25. Rxd5 Nxf2+ 26. Kg1 Ne4) 24. Re2 $11 Rxe2 (24... Qxd5 $2 {perishes.} 25. Rxe7 Bxe7 26. Nc7 $18) 25. Qxe2 Qxd5 26. Nc7 {[%csl LRa6,LRd5] Repels Qe6} Qc6 27. Nxa6 {Strongly threatening Nb8.} Nxa3 28. Re1 Be5 29. Qb2 Qxa4 (29... Bxc3 $2 {too greedy.} 30. Rc1 (30. Qxa3 $2 {is the wrong capture.} Bxe1 31. Qb2 Bh4 $19) 30... Bxb2 31. Rxc6 $18) 30. Ra1 {[#]} (30. Qb8+ $11 Kh7 31. Qb7) 30... Qf4 $1 {[%csl Ge5][%cal Rf4h2]} 31. g3 {[#]} Qf3+ (31... Qf5 $1 $17 {White must now prevent ...Nc2.} 32. Qg2 Nb5 (32... Bxc3 33. Rxa3 Qb1+ 34. Qg1 $17)) 32. Qg2 Qxc3 $40 {[%mdl 128] Black mounts an attack.} 33. Qa8+ Kh7 34. Qe4+ $1 g6 35. Rf1 Kg7 {aiming for ...Qc8.} 36. Qd5 Bf6 37. Nb8 $2 (37. Qxd6 $11 Nb5 38. Qb6) 37... Qc4 $2 (37... Nc4 $19 {has better winning chances. ...Ne3 would now be deadly.} 38. Nd7 Ne3) 38. Qf3 $17 Bc3 39. Nd7 (39. Rc1 $142 Nb5 40. Nc6) 39... Nb5 40. Rd1 $2 {[%mdl 8192]} (40. Nb6 $17 {is tougher.} Qe6 41. Nd5) 40... Qe6 (40... Qc7 $142 41. Rd3 a4 (41... Qxd7 $2 42. Rxc3 Nxc3 43. Qxc3+ Kg8 44. Qxa5 $19)) 41. Nb6 $19 Be5 ({Black should play} 41... Bd4 $19 42. Nd5 Be5 (42... a4 $2 43. Nc7 $19)) 42. Nd5 (42. Qd5 $15 Qf5 43. Nc4) 42... a4 {And now ...a3 would win.} 43. Qd3 Nd4 44. Nf4 (44. Ne3 $142) 44... Qc8 45. Qe4 {Repels Qa8} a3 46. Nd3 $2 (46. Rxd4 Qc1+ 47. Kg2) 46... Bf6 {Threatens to win with ...Qc2. Black is clearly winning.} 47. Rf1 a2 48. Nb4 Qc4 {Weighted Error Value: White=0.58/Black=0.43.  Loses game:     	White=3     	---        Mistake:       	White=6     	Black=6      Inaccurate:     	White=1     	Black=2      OK:         	White=11    	Black=14     Best:        	White=4     	Black=2      Strong:       	White=1     	---} 0-1

[Event "45th FIDE Olympiad 2024"]
[Site "Budapest"]
[Date "2024.09.11"]
[Round "1.148"]
[White "Smerdon, David C"]
[Black "Al Abdali, Zeyad Saleh"]
[Result "1-0"]
[ECO "B22"]
[WhiteElo "2475"]
[BlackElo "1780"]
[Annotator "TA"]
[PlyCount "53"]
[EventDate "2024.09.05"]
[EventType "team-tourn"]
[EventCountry "HUN"]
[SourceTitle "playchess.com"]
[Source "ChessBase"]
[SourceQuality "1"]
[WhiteTeam "Australia"]
[BlackTeam "Saudi Arabia"]
[WhiteTeamCountry "AUS"]
[BlackTeamCountry "SAU"]
[TimeControl "40/5400+30:1800+30"]

{[%evp 13,53,13,8,2,7,8,46,38,12,10,16,12,27,22,48,61,136,108,247,231,240,236,236,245,205,65,61,65,64,62,589,550,588,588,579,584,613,600,2485,4577,1662,1284]} 1. e4 c5 2. c3 Nf6 3. e5 Nd5 4. Nf3 e6 5. d4 cxd4 6. cxd4 d6 7. Bc4 Be7 8. O-O O-O 9. Qe2 Bd7 10. Nc3 {White is slightly better.} Nxc3 11. bxc3 Bc6 12. exd6 Qxd6 (12... Bxd6 {feels hotter.} 13. Ng5 h6 14. Nxf7 Rxf7 15. Qxe6 Qf6) 13. a4 Rc8 14. Ne5 {aiming for Ba3.} Bd5 {[#]} (14... Be8 $1 $14) 15. Bd3 $1 $16 {White is more active.} Rxc3 {[#]} (15... g6 $16 {was necessary.}) 16. Bxh7+ $1 $18 {[%mdl 512]} Kxh7 17. Qh5+ Kg8 18. Qxf7+ Kh7 {[%cal Bg8h7,Bh7g6,Bg6f7][%mdl 32]} 19. Bf4 (19. Qg6+ $18 Kg8 20. Bb2) 19... Nc6 $1 $14 20. Nxc6 Qxc6 21. Qxe7 $40 {[%mdl 128] Be5 would now be deadly. White has some attack.} Bxg2 $2 {[%mdl 8192] [#]} (21... Qe8 $14 22. Qh4+ Kg8) 22. Be5 $1 $18 {White is clearly winning.} Rg8 23. Qh4+ Kg6 {[%cal Og2h3]} 24. Qg4+ Kf7 25. Qxg2 Qa6 26. Rac1 Qc6 {[#]} 27. d5 $1 {Weighted Error Value: White=0.15 (very precise) /Black=0.63.  Loses game:     	---       	Black=1      Mistake:       	White=1     	Black=2      Inaccurate:     	---       	Black=3      OK:         	White=10    	Black=2      Best:        	White=1     	Black=1      Strong:       	White=2     	Black=1      Brilliant:      	White=1     	---} 1-0

[Event "45th FIDE Olympiad 2024"]
[Site "Budapest"]
[Date "2024.09.11"]
[Round "1.149"]
[White "Pelletier, Yannick"]
[Black "Njoroge, Martin"]
[Result "1-0"]
[ECO "D30"]
[WhiteElo "2526"]
[BlackElo "1972"]
[Annotator "TA"]
[PlyCount "75"]
[EventDate "2024.09.05"]
[EventType "team-tourn"]
[EventCountry "HUN"]
[SourceTitle "playchess.com"]
[Source "ChessBase"]
[SourceQuality "1"]
[WhiteTeam "Switzerland"]
[BlackTeam "Kenya"]
[WhiteTeamCountry "SUI"]
[BlackTeamCountry "KEN"]
[TimeControl "40/5400+30:1800+30"]

{[%evp 10,75,17,0,-10,-2,-10,-1,0,-4,-1,0,0,0,14,0,0,0,0,0,0,0,-14,-2,79,85,109,101,130,139,154,141,249,263,268,267,266,268,279,285,318,287,302,311,563,562,516,432,559,521,670,648,683,681,681,679,664,647,737,699,845,838,29975,29975,29968,6682,29992,29993]} 1. d4 d5 2. Nf3 e6 3. c4 Nf6 4. Bg5 Be7 5. e3 O-O 6. Nbd2 b6 7. Rc1 Bb7 8. cxd5 exd5 {The position is equal.} 9. Bd3 Nbd7 10. O-O c5 11. b3 Rc8 12. Ne5 Nxe5 13. dxe5 Ne4 14. Bf4 Nxd2 15. Qxd2 c4 16. Bf5 Ra8 (16... Rc5 $11 {remains equal.}) 17. bxc4 $16 {White is much more active. Black is now going downhill.} dxc4 {[#]} 18. Qc2 ({But not} 18. Qxd8 $6 Rfxd8 19. Rxc4 Ba6 $11) 18... g6 19. Rfd1 Qc7 20. Bd7 {[%cal Oc2a4] Black must now prevent Qa4!} ({Inferior is} 20. Qxc4 Qxc4 21. Rxc4 Ba6 $17 (21... gxf5 22. Rc7 $14)) 20... Rfd8 (20... Qc5 $16 21. Qxc4 Qxc4 22. Rxc4 Bc8) 21. e6 $18 ({Weaker is} 21. Qxc4 Qxc4 22. Rxc4 Bc8 $16) 21... Qc5 22. Qxc4 Qxc4 23. Rxc4 fxe6 {[#]} 24. Bc7 $1 Bd5 25. Bxd8 Rxd8 26. Rc7 Bxa2 $2 (26... a5 {might work better.} 27. a4 h5) 27. Rxa7 Bd5 {[#]} 28. e4 $1 Bc4 (28... Bxe4 29. Bxe6+) 29. Rc1 Bb3 {[#]} 30. Bxe6+ $1 {[%mdl 512]} Bxe6 31. Rxe7 {[%mdl 4096] Endgame. KRR-KRB} Bc4 32. f3 (32. Rxc4 $2 Rd1#) 32... b5 33. Rb7 h6 34. h4 Rd2 35. Ra1 {White threatens Ra8+ and mate.} Kh8 36. Ra8+ Bg8 37. Rbb8 Rxg2+ 38. Kxg2 {Weighted Error Value: White=0.06 (flawless) /Black=0.63.  Mistake:       	---       	Black=3      OK:         	White=12    	Black=5      Best:        	White=3     	Black=1      Strong:       	White=1     	---} 1-0